[Event "73rd ARM-chW Highest League 2018"]
[Site "Yerevan"]
[Date "2018.01.15"]
[Round "4"]
[White "Khachatryan, Anna"]
[Black "Sargsyan, Anna M."]
[Result "0-1"]
[ECO "A06"]
[WhiteElo "2004"]
[BlackElo "2214"]
[Annotator "NA RC"]
[PlyCount "106"]
[EventDate "2018.??.??"]
[EventType "tourn"]
[EventCountry "ARM"]
[SourceTitle "playchess.com"]
[Source "ChessBase"]
[SourceQuality "1"]
[TimeControl "40/5400+30:1800+30"]

{[%evp 24,85,38,59,85,64,119,53,120,101,116,122,121,124,115,32767,32767,32767,32767,32767,32767,32767,146,65,82,14,72,69,59,33,35,9,51,37,37,32767,31,-60,32767,32767,32767,-40,-27,-47,-36,-37,-28,-57,-4,-159,-165,32767,32767,32767,32767,-233,-277,-260,-62,-310,32767,-257,-244,-392]} 1. Nf3 {[%emt 0:00:00]} d5 {[%emt 0:00:05]} 2. g3 {[%emt 0:00:00]} c6 {[%emt 0:00:04]} 3. Bg2 {[%emt 0:00:05]} Bg4 {[%emt 0:00:06]} 4. O-O {[%emt 0:00:05]} Nd7 {[%emt 0:00:03]} 5. d3 {[%emt 0:00:23]} e6 {[%emt 0:00:08]} 6. c4 {[%emt 0:00:30]} Bd6 {[%emt 0:00:05]} 7. cxd5 {[%emt 0:00:26]} exd5 {[%emt 0:01:17]} 8. Nc3 {[%emt 0:00:47] A11: English Opening: 1...c6} Ne7 {[%emt 0:00:38]} 9. e4 {[%emt 0:00:32]} (9. Qc2 O-O 10. e4 Re8 11. h3 Bh5 12. Bg5 f6 13. Be3 Bf7 14. Rfe1 Rc8 15. Rad1 Qa5 {1-0 (26) Matlakov,M (2689)-Khismatullin,D (2651) Berlin 2015}) 9... O-O {[%emt 0:00:39]} 10. h3 {[%emt 0:12:12]} Bh5 {[%emt 0:00:31]} 11. g4 {[%emt 0:04:19]} Bg6 {[%emt 0:00:10]} 12. Nh4 {[%emt 0:00:09]} d4 $146 {[%emt 0:11:10]} ({Predecessor:} 12... dxe4 13. dxe4 Qc7 14. Nf5 Bxf5 15. exf5 Rad8 {1-0 (32) Obukhov,A (2453)-Palekha,A (2409) St Petersburg 2002}) 13. Ne2 {[%emt 0:00:45]} c5 {[%emt 0:00:06]} 14. f4 {[%emt 0:11:56]} f6 {[%emt 0:00:36]} 15. Nxg6 {[%emt 0:03:24]} hxg6 {[%emt 0:04:10]} 16. Qb3+ {[%emt 0:01:10]} Kh8 {[%emt 0:00:14]} 17. Qxb7 {[%emt 0:01:36]} c4 {[%emt 0:02:00]} 18. Qa6 {[%emt 0:16:45]} ({Stronger than} 18. Nxd4 Bc5 $11) ({Not} 18. dxc4 Rb8 $17) 18... Nb6 {[%emt 0:02:58]} 19. Bd2 {[%emt 0:08:02]} Rc8 {[%emt 0:04:16]} 20. Ba5 {[%emt 0:08:50]} Qd7 {[%emt 0:12:28]} 21. Bxb6 {[%emt 0:04:03]} axb6 {[%emt 0:00:39]} 22. dxc4 {[%emt 0:01:32]} Rc5 {[%emt 0:05:34]} (22... g5 $11) 23. b4 {[%emt 0:05:11]} ({Of course not} 23. Nxd4 $6 Ra5 $11) ({Much worse is} 23. Qxb6 $6 Rb8 $11) 23... Rc7 {[%emt 0:00:05]} 24. Qb5 {[%emt 0:01:18]} (24. Rad1 $16 Bxb4 25. Nc1 (25. Qxb6 Bc5 $15)) 24... Qxb5 {[%emt 0:00:36]} (24... d3 $1 $11 25. Qxd7 Rxd7) 25. cxb5 {[%emt 0:00:01]} Bxb4 {[%emt 0:00:10]} 26. Rfd1 {[%emt 0:00:46]} ({Not} 26. Nxd4 $2 Bc5 $19) 26... Rd8 {[%emt 0:03:18]} 27. Rd3 {[%emt 0:02:39]} ({Don't go for} 27. Rxd4 $2 Bc5 $19) 27... Rc2 {[%emt 0:01:53]} 28. Kf1 {[%emt 0:00:35]} Bc5 {[%emt 0:00:05]} 29. Rad1 {[%emt 0:05:35]} g5 {[%emt 0:05:31]} 30. R1d2 {[%emt 0:05:29]} (30. f5 $11) 30... Rxd2 {[%emt 0:01:27]} 31. Rxd2 {[%emt 0:00:01]} Ng6 {[%emt 0:00:10]} 32. fxg5 {[%emt 0:03:28]} fxg5 {[%emt 0:00:05]} 33. Nc1 Rf8+ {[%emt 0:05:28]} 34. Rf2 {[%emt 0:02:18]} Nf4 {[%emt 0:00:04]} 35. Nb3 {[%emt 0:02:04]} Rc8 {[%emt 0:00:02]} 36. Rd2 $2 {[%emt 0:00:22]} ({White should play} 36. Rc2 $11) 36... d3 {[%emt 0:00:28]} 37. e5 {[%emt 0:00:24]} Be3 {[%emt 0:00:12]} 38. Rd1 {[%emt 0:00:08]} Rc2 {[%emt 0:00:13]} 39. Be4 {[%emt 0:00:56]} Rf2+ {[%emt 0:01:44]} 40. Ke1 {[%emt 0:00:00]} Re2+ $2 {[%emt 0:00:19]} (40... Rxa2 $19 41. Nd2 Kg8) 41. Kf1 {[%emt 0:00:14]} d2 {[%emt 0:00:40]} 42. Nxd2 {[%emt 0:03:57]} Rxd2 {[%emt 0:00:31]} 43. Ke1 $19 {[%emt 0:04:32]} (43. Rxd2 {is the only way for White.} Bxd2 44. Kf2) 43... Rxd1+ {[%emt 0:01:46]} 44. Kxd1 {[%emt 0:00:00]} Kg8 {[%emt 0:00:38]} 45. Kc2 {[%emt 0:00:10]} Kf7 {[%emt 0:00:08]} 46. Bf5 {[%emt 0:00:05]} Bd4 {[%emt 0:01:09]} 47. e6+ {[%emt 0:01:37]} Nxe6 {[%emt 0:00:04]} 48. Kd3 {[%emt 0:00:06]} Bf2 {[%emt 0:00:34]} 49. Kc4 {[%emt 0:00:23]} Nf4 {[%emt 0:00:20]} 50. a4 {[%emt 0:00:15]} Kf6 {[%emt 0:00:18]} 51. Kb3 {[%emt 0:01:00]} Nxh3 {[%emt 0:00:15]} 52. a5 {[%emt 0:00:07]} bxa5 {[%emt 0:00:04]} 53. Ka4 {[%emt 0:00:02]} Bb6 {[%emt 0:00:05]} 0-1

[Event "73rd ARM-chW Highest League 2018"]
[Site "Yerevan"]
[Date "2018.01.16"]
[Round "5"]
[White "Arakelyan, Nare"]
[Black "Khachatryan, Anna"]
[Result "1-0"]
[ECO "B31"]
[WhiteElo "1747"]
[BlackElo "2004"]
[Annotator "NA RC"]
[PlyCount "83"]
[EventDate "2018.??.??"]
[EventType "tourn"]
[EventCountry "ARM"]
[SourceTitle "playchess.com"]
[Source "ChessBase"]
[SourceQuality "1"]
[TimeControl "40/5400+30:1800+30"]

{[%evp 8,83,37,21,29,31,33,27,32767,32767,32767,32767,32767,32767,32767,32767,32767,32767,32767,32767,20,-24,-5,-48,32767,-60,34,32767,32767,32767,32767,32767,32767,6,32767,32767,32767,75,32767,32767,88,47,45,0,72,76,32767,32767,32767,54,32767,62,32767,143,299,309,32767,32767,419,32767,684,32767,32767,0,341,403,512,32767,32767,529,32767,32767,32767,32767,32767,32767,29998,29999]} 1. e4 {[%emt 0:00:00]} c5 {[%emt 0:00:12]} 2. Nf3 {[%emt 0:00:00]} Nc6 {[%emt 0:00:06]} 3. Bb5 {[%emt 0:00:00]} g6 {[%emt 0:00:39]} 4. Bxc6 {[%emt 0:00:00]} dxc6 {[%emt 0:00:05]} 5. d3 {[%emt 0:00:03]} Bg7 {[%emt 0:00:06]} 6. h3 {[%emt 0:00:11] LiveBook: 2092 Games} b6 {[%emt 0:00:05]} 7. O-O {[%emt 0:00:50]} e5 {[%emt 0:00:32]} 8. Be3 {[%emt 0:01:19]} Ne7 {[%emt 0:01:11]} 9. a4 {[%emt 0:01:08]} a5 {[%emt 0:00:08]} 10. Qd2 {[%emt 0:01:57] B31: Sicilian: 2...Nc6 3 Bb5 g6} (10. Nbd2 f6 11. Nc4 Be6 12. b4 axb4 13. a5 bxa5 14. Bxc5 O-O 15. Nfd2 Bh6 16. Nb6 Ra6 17. Ndc4 Rf7 18. Rxa5 Rxa5 19. Nxa5 {½-½ (57) Hujbert,F (2419)-Horvath,J (2532) Hungary 2013}) 10... h6 {[%emt 0:00:29]} 11. Na3 {[%emt 0:00:54]} Be6 {[%emt 0:09:15]} 12. b3 $146 {[%emt 0:01:07]} ({Predecessor:} 12. Rfe1 Qc7 13. c3 Rd8 14. Qc2 O-O 15. Rad1 Rd7 16. d4 cxd4 17. cxd4 exd4 18. Nxd4 Bxd4 19. Rxd4 Rxd4 20. Bxd4 {1-0 (39) Khatanbaatar,B (2403)-Lkhagva,J (2213) Ulaanbaatar 2009}) 12... Qc7 {[%emt 0:12:04]} 13. Nc4 {[%emt 0:01:37]} g5 {[%emt 0:04:42]} 14. Qc3 {[%emt 0:06:48]} Ng6 {[%emt 0:05:12]} 15. Rfe1 {[%emt 0:03:59]} O-O {[%emt 0:05:44]} 16. Nh2 {[%emt 0:11:33]} Rfe8 {[%emt 0:09:08]} (16... f5 $15) 17. Rab1 {[%emt 0:11:46]} Rab8 {[%emt 0:02:25]} 18. Nf1 {[%emt 0:03:34]} Qd7 {[%emt 0:05:10]} 19. Bc1 {[%emt 0:06:07]} Nf4 {[%emt 0:17:52]} 20. Nce3 {[%emt 0:03:26]} Ng6 {[%emt 0:09:25]} 21. Qd2 {[%emt 0:04:39]} Nh4 {[%emt 0:04:10]} 22. Qe2 {[%emt 0:01:45]} Kh7 {[%emt 0:03:18]} 23. g4 {[%emt 0:06:35]} h5 {[%emt 0:05:13]} 24. Ng3 {[%emt 0:01:33]} hxg4 {[%emt 0:00:30]} 25. hxg4 {[%emt 0:01:28]} Rh8 {[%emt 0:02:47]} 26. Nef5 {[%emt 0:01:13]} Bxf5 {[%emt 0:02:13]} 27. gxf5 {[%emt 0:00:06]} f6 {[%emt 0:00:30]} 28. Be3 {[%emt 0:03:36]} Kg8 29. Red1 {[%emt 0:03:51]} Kf7 {[%emt 0:00:44]} 30. c3 {[%emt 0:01:13]} Rbe8 {[%emt 0:00:44]} (30... Qc7 $16 {was called for.} 31. d4 cxd4 32. cxd4 exd4 33. Bxd4 Kg8) 31. d4 {[%emt 0:02:40]} cxd4 {[%emt 0:00:05]} 32. cxd4 {[%emt 0:00:11]} exd4 {[%emt 0:00:15]} 33. Rxd4 {[%emt 0:00:48]} Qc7 $1 $11 {[%emt 0:01:15] and Black is okay.} (33... Qe7 $142 34. Rbd1 Kf8) 34. Qc4+ {[%emt 0:00:27]} Kf8 {[%emt 0:00:07]} 35. Qe2 {[%emt 0:02:28]} (35. Rdd1 $14) 35... Kg8 $2 {[%emt 0:00:22]} 36. Rbd1 {[%emt 0:01:04]} Re7 {[%emt 0:00:27]} 37. Rd8+ {[%emt 0:00:52]} Bf8 {[%emt 0:00:01]} 38. Nh5 {[%emt 0:02:51]} Rf7 39. R1d7 {[%emt 0:01:58]} Qe5 {[%emt 0:01:18]} 40. Rxf7 {[%emt 0:00:00]} Kxf7 {[%emt 0:00:37]} 41. Bd4 {[%emt 0:02:20]} Qc7 {[%emt 0:01:53]} 42. Qc4+ {[%emt 0:00:16]} 1-0

[Event "73rd ARM-chW Highest League 2018"]
[Site "Yerevan"]
[Date "2018.01.17"]
[Round "6"]
[White "Asatryan, Sona"]
[Black "Sargsyan, Anna M."]
[Result "1/2-1/2"]
[ECO "C47"]
[WhiteElo "2111"]
[BlackElo "2214"]
[Annotator "NA RC"]
[PlyCount "102"]
[EventDate "2018.??.??"]
[EventType "tourn"]
[EventCountry "ARM"]
[SourceTitle "playchess.com"]
[Source "ChessBase"]
[SourceQuality "1"]
[TimeControl "40/5400+30:1800+30"]

{[%evp 13,96,-12,6,0,22,32767,32767,32767,32767,0,20,9,32767,14,23,16,23,32767,63,32767,32767,32767,0,32767,32767,11,6,15,43,32767,32767,32767,39,32767,46,18,32767,-8,0,-6,18,19,49,53,38,10,10,0,0,-8,5,4,32767,32767,32767,32767,32767,32767,32767,32767,32767,32767,32767,32767,32767,32767,32767,32767,32767,32767,32767,32767,32767,8,0,22,32767,8,32767,8,8,6,8,0,8]} 1. e4 e5 2. Nf3 Nf6 3. Nc3 Nc6 4. d4 exd4 5. Nxd4 Bb4 6. Nxc6 bxc6 7. Bd3 d5 8. exd5 O-O 9. O-O cxd5 10. Bg5 c6 11. Qf3 {LiveBook: 1108 Games} ({Much worse is} 11. Bxf6 Qxf6 12. Ne2 Bd6 $17) 11... a5 {C47: Scotch Four Knights and Four Knights with 4 g3} 12. Ne2 h6 13. Bxf6 Qxf6 14. Qxf6 gxf6 {[#]} 15. Nd4 $146 ({Find the theoretical novelty and annotate with similar games:} 15. Ng3 Re8 16. Nh5 Be7 17. Rae1 Be6 18. Re3 Rab8 19. b3 Kf8 20. h3 c5 21. Rf3 c4 22. Bf5 {½-½ (73) Ni,H (2710)-Naiditsch,A (2678) Beijing 2008}) 15... c5 16. Nb5 Rb8 17. c4 Rd8 18. Rfd1 Bg4 19. f3 dxc4 20. Bxc4 Bf5 21. Nd6 Bc2 22. Rd5 a4 23. Rc1 Bg6 24. g4 Kf8 25. Rcd1 Ba5 26. Nb5 Bc2 27. Rxd8+ $1 Rxd8 28. Rxd8+ Bxd8 29. Kf2 f5 $1 30. Nd6 fxg4 31. Nxf7 Bc7 32. Nxh6 gxf3 33. Kxf3 Kg7 34. Ng4 Kg6 35. Ne3 Bb1 36. Nd5 Bxh2 37. Nc3 Bc2 38. Ke3 a3 39. bxa3 Kf6 40. Bd3 Bg1+ 41. Ke4 Bxd3+ 42. Kxd3 Ke6 43. a4 ({White should play} 43. Kc4 $16) 43... Kd6 44. Kc4 Kc6 45. Nd5 Bf2 46. Nf4 Kb6 47. Nd3 Bd4 48. a5+ Kxa5 $11 49. Nxc5 Bxc5 50. Kxc5 Ka4 51. a3 Kxa3 1/2-1/2

[Event "73rd ARM-chW Highest League 2018"]
[Site "Yerevan"]
[Date "2018.01.17"]
[Round "6"]
[White "Arakelyan, Nare"]
[Black "Mkrtchyan, Mariam"]
[Result "1-0"]
[ECO "B12"]
[WhiteElo "1747"]
[BlackElo "1834"]
[Annotator "NA RC"]
[PlyCount "79"]
[EventDate "2018.??.??"]
[EventType "tourn"]
[EventCountry "ARM"]
[SourceTitle "playchess.com"]
[Source "ChessBase"]
[SourceQuality "1"]
[TimeControl "40/5400+30:1800+30"]

{[%evp 8,61,12,-2,16,7,16,0,14,-11,5,32767,28,33,34,32767,112,32767,32767,32767,32767,32767,32767,32767,32767,32767,32767,32767,32767,32767,32767,79,32767,32767,138,32767,32767,155,220,234,202,173,168,155,175,164,170,145,133,154,159,145,145,32767,191,75]} 1. e4 {[%emt 0:00:00]} c6 {[%emt 0:00:17]} 2. d4 {[%emt 0:00:00]} d5 {[%emt 0:00:05]} 3. e5 {[%emt 0:00:01]} Bf5 {[%emt 0:00:44]} 4. h4 {[%emt 0:00:13]} h5 {[%emt 0:01:06]} 5. Bd3 {[%emt 0:00:10]} Bxd3 {[%emt 0:00:37]} 6. Qxd3 {[%emt 0:00:04]} e6 {[%emt 0:00:26]} 7. Bg5 {[%emt 0:00:07] B12: Caro-Kann (Vorstoß-Variante)} Qb6 {[%emt 0:05:35] LiveBook: 144 Games} (7... Be7 8. Nf3 c5 9. dxc5 Nd7 10. b4 Bxg5 11. hxg5 Ne7 12. Nc3 a5 13. Nb5 axb4 14. Nd6+ Kf8 {½-½ (52) Nepomniachtchi,I (2729)-Laznicka,V (2647) Riadh 2017}) 8. Nd2 {[%emt 0:01:24]} c5 {[%emt 0:05:43]} 9. c4 {[%emt 0:08:19]} Qa6 {[%emt 0:21:33]} 10. Ngf3 {[%emt 0:06:09]} Nc6 {[%emt 0:03:06]} 11. O-O $146 {[%emt 0:14:56]} ({Vorgänger:} 11. dxc5 Bxc5 12. O-O Nh6 13. a3 Ng4 14. Rae1 Be7 {1-0 (30) Lopez Martinez,J (2552)-Guerra Mendez,J (2542) Barcelona 2017}) 11... Nge7 {[%emt 0:14:44]} (11... cxd4 $14 12. Rfe1 (12. Nxd4 Nxe5 13. Qb3 dxc4 $11) 12... Rc8) 12. Qc3 {[%emt 0:07:22]} cxd4 {[%emt 0:06:25]} 13. Nxd4 {[%emt 0:01:11]} Nxd4 {[%emt 0:01:18]} 14. Qxd4 {[%emt 0:00:07]} Nc6 {[%emt 0:00:38]} 15. Qf4 {[%emt 0:01:55]} Be7 {[%emt 0:03:48]} 16. cxd5 {[%emt 0:01:34]} exd5 {[%emt 0:00:17]} 17. Rfe1 {[%emt 0:00:35]} O-O {[%emt 0:01:29]} 18. Bxe7 {[%emt 0:06:44]} Nxe7 {[%emt 0:00:11]} 19. Qg5 {[%emt 0:00:09]} Nc6 {[%emt 0:07:02]} 20. Nf3 {[%emt 0:02:00]} Rae8 {[%emt 0:04:27]} 21. Qxh5 {[%emt 0:01:34]} Nb4 {[%emt 0:01:32]} 22. Nd4 {[%emt 0:05:08]} Qh6 {[%emt 0:05:39]} 23. Qxh6 {[%emt 0:03:32]} gxh6 {[%emt 0:00:01]} 24. Re3 {[%emt 0:02:16]} Nc6 {[%emt 0:02:50]} 25. Nxc6 {[%emt 0:01:15]} bxc6 {[%emt 0:00:01]} 26. Rc1 {[%emt 0:00:14]} Re6 {[%emt 0:01:12]} 27. Rec3 {[%emt 0:02:15]} Rxe5 {[%emt 0:06:12]} 28. Rxc6 {[%emt 0:00:04]} Rd8 {[%emt 0:00:20]} 29. Rxh6 {[%emt 0:11:04]} d4 $16 {[%emt 0:00:09]} 30. Rhc6 {[%emt 0:00:56]} Kg7 {[%emt 0:02:50] [#]} (30... Re2 $16) 31. R6c2 {[%emt 0:02:05]} (31. Kf1 $1 $18 {and White stays clearly on top.}) 31... Rdd5 {[%emt 0:02:42]} 32. Rd1 {[%emt 0:01:35]} Re4 {[%emt 0:00:15]} 33. g3 {[%emt 0:00:11]} a5 {[%emt 0:00:01]} 34. Rcd2 {[%emt 0:00:20]} f5 {[%emt 0:00:21]} 35. f3 {[%emt 0:00:44]} Re3 {[%emt 0:00:16]} 36. Kf2 {[%emt 0:00:12]} Rde5 {[%emt 0:00:21]} 37. Rxd4 {[%emt 0:02:14]} Re2+ {[%emt 0:00:01]} 38. Kf1 {[%emt 0:00:13]} Rxb2 {[%emt 0:00:07]} 39. R4d2 {[%emt 0:01:53]} Rb4 {[%emt 0:00:12]} 40. Rd5 {[%emt 0:00:00]} 1-0

[Event "73rd ARM-chW Highest League 2018"]
[Site "Yerevan"]
[Date "2018.01.18"]
[Round "7"]
[White "Galojan, Lilit"]
[Black "Asatryan, Sona"]
[Result "1-0"]
[ECO "E17"]
[WhiteElo "2300"]
[BlackElo "2111"]
[Annotator "NA RC"]
[PlyCount "87"]
[EventDate "2018.??.??"]
[EventType "tourn"]
[EventCountry "ARM"]
[SourceTitle "playchess.com"]
[Source "ChessBase"]
[SourceQuality "1"]
[TimeControl "40/5400+30:1800+30"]

{[%evp 8,87,13,19,14,8,18,32767,32767,32767,32767,32767,32767,32767,44,19,26,34,54,73,32767,2,16,32767,32767,32767,12,2,72,32767,32767,32767,60,40,73,69,110,106,32767,107,116,32767,32767,32767,32767,73,32767,37,32767,116,32767,112,32767,32767,166,32767,197,200,32767,32767,483,609,483,476,487,215,488,545,592,32767,589,841,833,1054,814,1335,1042,1208,1610,1655,5795,5700]} 1. d4 {[%emt 0:00:00]} Nf6 {[%emt 0:00:16]} 2. Nf3 {[%emt 0:00:00]} e6 {[%emt 0:00:27]} 3. c4 {[%emt 0:00:06]} b6 {[%emt 0:00:02]} 4. g3 {[%emt 0:00:11]} Bb7 {[%emt 0:00:06]} 5. Bg2 {[%emt 0:00:06] LiveBook: 8609 Games} Be7 {[%emt 0:00:04]} 6. O-O {[%emt 0:00:07]} O-O {[%emt 0:00:03]} 7. Re1 {[%emt 0:00:19]} a5 {[%emt 0:00:43] E17: Queen's Indian: 4 g3 Bb7 5 Bg2 Be7} (7... Na6 8. Ne5 Bxg2 9. Kxg2 c5 10. d5 Qc7 11. Nf3 Ne4 12. a3 f5 13. Qd3 Qb7 14. Nbd2 Nxd2 15. Bxd2 Bf6 {0-1 (38) Mamedyarov,S (2799)-Korobov,A (2652) Huaian 2017}) 8. Nc3 {[%emt 0:00:49]} Ne4 {[%emt 0:00:11]} 9. Qc2 {[%emt 0:01:07]} Nxc3 {[%emt 0:00:52]} 10. bxc3 {[%emt 0:00:48]} f5 {[%emt 0:00:10]} 11. Ne5 {[%emt 0:00:58]} Bxg2 {[%emt 0:02:44]} 12. Kxg2 {[%emt 0:00:05]} d6 {[%emt 0:13:40]} 13. Nf3 $146 {[%emt 0:00:06]} ({Predecessor:} 13. Nd3 Bg5 14. Bxg5 Qxg5 15. c5 bxc5 {½-½ (52) Aranaz Murillo,A (2162)-Alcaraz Ortega,J (2247) Padrun 2011}) 13... a4 {[%emt 0:13:06]} 14. h4 {[%emt 0:17:00]} ({Better is} 14. e4 $14) 14... Ra5 {[%emt 0:05:02]} 15. Ba3 {[%emt 0:20:31]} Nd7 {[%emt 0:06:53]} 16. Rad1 {[%emt 0:17:28]} Qe8 {[%emt 0:06:05]} 17. e4 {[%emt 0:10:39]} Qh5 {[%emt 0:12:16]} 18. e5 {[%emt 0:01:25]} f4 {[%emt 0:04:24]} 19. Qe2 {[%emt 0:01:55]} Rf7 {[%emt 0:03:59] [#]} 20. Rd3 {[%emt 0:19:35]} ({Günstiger ist} 20. Bb4 $1 $16) 20... Qg6 {[%emt 0:15:02]} 21. Bb4 {[%emt 0:01:07]} fxg3 {[%emt 0:02:19]} 22. fxg3 {[%emt 0:00:19]} Ra8 {[%emt 0:03:50]} 23. exd6 {[%emt 0:01:24]} Bxd6 {[%emt 0:02:37]} 24. Bxd6 {[%emt 0:00:05]} cxd6 {[%emt 0:00:01]} 25. Ng5 {[%emt 0:00:23]} Re7 {[%emt 0:01:16]} 26. Nxe6 {[%emt 0:02:28]} Rae8 {[%emt 0:02:14]} 27. Re3 {[%emt 0:00:24]} Nf8 {[%emt 0:01:10] [#]} 28. d5 $1 {[%emt 0:01:39]} Nd7 {[%emt 0:01:03] [#]} 29. Re4 {[%emt 0:01:19]} (29. h5 $1 $18 {[%cal Rh5g6]} Qh6 30. Rf1) 29... Rc8 {[%emt 0:01:58]} 30. Rf1 {[%emt 0:01:20]} Nf6 {[%emt 0:01:00]} 31. Ref4 {[%emt 0:00:46]} h6 {[%emt 0:00:51]} 32. Rf5 {[%emt 0:00:42]} b5 {[%emt 0:01:13]} 33. h5 {[%emt 0:00:25]} Qg4 {[%emt 0:00:48]} 34. Qxg4 {[%emt 0:00:18]} Nxg4 {[%emt 0:00:01]} 35. Rf8+ {[%emt 0:00:09]} Rxf8 {[%emt 0:00:07]} 36. Rxf8+ {[%emt 0:00:02]} Kh7 {[%emt 0:00:06]} 37. cxb5 {[%emt 0:01:13]} Ne3+ {[%emt 0:00:23]} 38. Kf3 {[%emt 0:00:46]} Nxd5 {[%emt 0:00:23]} 39. Nf4 {[%emt 0:00:51]} Nxf4 {[%emt 0:01:36]} 40. Rxf4 {[%emt 0:00:00]} Rb7 {[%emt 0:00:46]} 41. Rb4 {[%emt 0:00:33]} g6 {[%emt 0:01:27]} 42. Ke4 {[%emt 0:00:44]} gxh5 {[%emt 0:01:11]} 43. b6 {[%emt 0:00:14]} Kg6 {[%emt 0:00:30]} 44. Kd5 $18 {[%emt 0:00:05]} 1-0

[Event "73rd ARM-chW Highest League 2018"]
[Site "Yerevan"]
[Date "2018.01.18"]
[Round "7"]
[White "Gaboyan, Susanna"]
[Black "Kursova, Maria"]
[Result "0-1"]
[ECO "A45"]
[WhiteElo "2168"]
[BlackElo "2249"]
[Annotator "ChessBase"]
[PlyCount "118"]
[EventDate "2018.??.??"]
[EventType "tourn"]
[EventCountry "ARM"]
[SourceTitle "playchess.com"]
[Source "ChessBase"]
[SourceQuality "1"]
[TimeControl "40/5400+30:1800+30"]

1. d4 {[%emt 0:03:08]} Nf6 {[%emt 0:00:10]} 2. Bg5 {[%emt 0:00:11]} e6 {[%emt 0:00:14]} 3. e4 {[%emt 0:00:10]} h6 {[%emt 0:00:15]} 4. Bxf6 {[%emt 0:00:10]} Qxf6 {[%emt 0:00:07]} 5. Nc3 {[%emt 0:00:41]} Bb4 {[%emt 0:00:46]} 6. Qd2 {[%emt 0:00:12]} d6 {[%emt 0:03:08]} 7. f4 {[%emt 0:03:01]} e5 {[%emt 0:15:13]} 8. Nge2 {[%emt 0:08:00]} exd4 {[%emt 0:11:57]} 9. Qxd4 {[%emt 0:03:56]} Qxd4 {[%emt 0:01:33]} 10. Nxd4 {[%emt 0:00:09]} Nc6 {[%emt 0:20:59]} 11. O-O-O {[%emt 0:13:37]} Nxd4 {[%emt 0:07:49]} 12. Rxd4 {[%emt 0:03:19]} Bxc3 {[%emt 0:06:44]} 13. bxc3 {[%emt 0:00:14]} Ke7 {[%emt 0:00:09]} 14. Bc4 {[%emt 0:02:29]} Be6 {[%emt 0:01:24]} 15. Bb3 {[%emt 0:01:17]} c5 {[%emt 0:01:33]} 16. Rd2 {[%emt 0:04:03]} c4 {[%emt 0:00:12]} 17. f5 {[%emt 0:02:23]} cxb3 {[%emt 0:00:18]} 18. fxe6 {[%emt 0:00:04]} bxa2 {[%emt 0:00:09]} 19. Kb2 {[%emt 0:00:05]} Kxe6 {[%emt 0:03:12]} 20. Rhd1 {[%emt 0:00:44]} Rhd8 {[%emt 0:00:30]} 21. Rd5 {[%emt 0:00:46]} f6 {[%emt 0:04:03]} 22. Kxa2 {[%emt 0:01:27]} Rac8 {[%emt 0:00:03]} 23. Kb3 {[%emt 0:00:20]} Rc6 {[%emt 0:00:18]} 24. c4 {[%emt 0:04:49]} Rdc8 {[%emt 0:01:20]} 25. g4 {[%emt 0:01:30]} R8c7 {[%emt 0:02:54]} 26. R1d4 {[%emt 0:07:42]} Rb6+ {[%emt 0:01:14]} 27. Kc3 {[%emt 0:00:12]} Rcc6 {[%emt 0:00:53]} 28. h4 {[%emt 0:01:02]} Rb1 {[%emt 0:03:41]} 29. g5 {[%emt 0:00:37]} hxg5 {[%emt 0:04:56]} 30. hxg5 {[%emt 0:00:07]} b5 {[%emt 0:00:32]} 31. gxf6 {[%emt 0:02:40]} gxf6 {[%emt 0:00:02]} 32. Kd2 {[%emt 0:01:24]} bxc4 {[%emt 0:00:36]} 33. Kc3 {[%emt 0:01:58]} Re1 {[%emt 0:06:56]} 34. Ra5 {[%emt 0:01:44]} Re3+ {[%emt 0:00:44]} 35. Kb4 {[%emt 0:02:07]} a6 {[%emt 0:01:17]} 36. Rxc4 {[%emt 0:01:19]} Rb6+ {[%emt 0:01:30]} 37. Ka4 {[%emt 0:00:15]} Re1 {[%emt 0:00:05]} 38. Rc3 {[%emt 0:00:49]} Rxe4+ {[%emt 0:00:20]} 39. Ka3 {[%emt 0:00:05]} Re5 {[%emt 0:01:35]} 40. Ra4 {[%emt 0:00:00]} Rc5 {[%emt 0:00:24]} 41. Re3+ {[%emt 0:01:05]} Kf7 {[%emt 0:04:03]} 42. c3 {[%emt 0:00:53]} f5 {[%emt 0:00:31]} 43. Rh4 {[%emt 0:02:23]} Ra5+ {[%emt 0:02:10]} 44. Ra4 {[%emt 0:00:11]} Rxa4+ {[%emt 0:00:33]} 45. Kxa4 {[%emt 0:00:07]} Kf6 {[%emt 0:00:05]} 46. Ka5 {[%emt 0:00:18]} Rc6 {[%emt 0:00:25]} 47. Kb4 {[%emt 0:00:10]} f4 {[%emt 0:00:17]} 48. Re8 {[%emt 0:00:12]} Kf5 {[%emt 0:00:15]} 49. c4 {[%emt 0:00:10]} Kg4 {[%emt 0:02:09]} 50. Rg8+ {[%emt 0:01:02]} Kf3 {[%emt 0:00:08]} 51. Rg6 {[%emt 0:00:19]} Ke3 {[%emt 0:02:05]} 52. Kc3 {[%emt 0:00:13]} f3 {[%emt 0:00:45]} 53. Re6+ {[%emt 0:00:10]} Kf2 {[%emt 0:00:33]} 54. Kd3 {[%emt 0:00:15]} a5 {[%emt 0:01:37]} 55. c5 {[%emt 0:01:37]} Rxc5 {[%emt 0:00:08]} 56. Rxd6 {[%emt 0:00:04]} Re5 {[%emt 0:01:33]} 57. Kd2 {[%emt 0:03:03]} Kg2 {[%emt 0:00:34]} 58. Rg6+ {[%emt 0:00:21]} Kf1 {[%emt 0:00:03]} 59. Rg4 {[%emt 0:00:42]} f2 {[%emt 0:00:17]} 0-1